bitfinex-derivatives/quotes_ETHF0:USTF0_20260120
["timestamp","ask_amount","ask_price","bid_price","bid_amount"]
[1768868866777,0.82588845,3179.5,3178.3,1.47791088]
[1768868866980,0.05671733,3179.7,3178.3,1.47791088]
[1768868867180,0.82588724,3179.6,3178.3,1.47791088]
[1768868867475,0.05671733,3179.7,3178.3,1.47791088]
[1768868867476,0.82588724,3179.5,3178.3,1.47791088]
[1768868867680,0.05671733,3179.7,3178.3,1.47791088]
[1768868867880,0.82603305,3179.6,3178.3,1.47791088]
[1768868868086,0.82603305,3179.5,3178.3,1.47791088]
[1768868868387,0.05671733,3179.7,3178.3,1.47791088]
[1768868868577,0.8260303,3179.6,3178.3,1.47791088]
[1768868868779,0.8260303,3179.5,3178.3,1.47791088]
[1768868868978,1.1238819,3179.9,3178.4,0.13752618]
[1768868869182,1.1238819,3179.9,3178.3,1.47791088]
[1768868869183,1.1238819,3180.3,3179.1,0.13752618]
[1768868869384,1.1238819,3180.4,3179.1,0.13752618]
[1768868869680,1.1238819,3180.5,3179.1,0.13752618]
[1768868871100,1.1238819,3180.6,3179.1,0.13752618]
[1768868872996,1.1238819,3180.6,3179.4,1.32050088]
[1768868873305,1.1238819,3180.8,3179.4,1.46196624]
[1768868873597,1.1238819,3181.0,3179.8,1.32050088]
[1768868874101,1.12632493,3181.0,3179.8,1.3235015]
[1768868874295,0.00244303,3181.0,3179.8,1.3235015]
[1768868874496,0.00244303,3181.0,3179.8,0.00300062]
[1768868874701,0.05439378,3181.0,3179.8,0.00300062]
[1768868875201,0.05223683,3180.9,3179.8,0.00300062]
[1768868875397,1.17611873,3180.8,3179.8,0.00300062]
[1768868876507,0.0522358,3180.7,3179.8,0.00300062]
[1768868879404,1.1238819,3180.9,3179.8,0.00300062]
[1768868879707,1.12632493,3181.0,3179.8,0.00300062]
[1768868880009,0.00244303,3181.0,3179.8,0.00300062]
[1768868880798,0.90031404,3181.2,3179.8,0.00300062]
[1768868881205,0.82042874,3181.1,3179.8,0.00300062]
[1768868881407,0.82042874,3181.0,3179.8,0.00300062]
[1768868881705,0.82042874,3180.9,3179.8,0.00300062]
[1768868881906,0.82042874,3180.8,3179.8,0.00300062]
[1768868882100,0.00300102,3180.9,3179.8,0.00300062]
[1768868884011,0.15725,3181.6,3179.8,0.00300062]
[1768868884012,0.15725,3181.6,3180.3,1.32050088]
[1768868884211,0.81909564,3181.5,3180.3,1.32050088]
[1768868884507,0.81909564,3181.4,3180.3,1.32050088]
[1768868884707,0.15725,3181.6,3180.3,1.32050088]
[1768868884903,0.82266326,3181.5,3180.0,0.14146536]
[1768868885211,0.82266326,3181.4,3180.0,0.14146536]
[1768868885411,0.16073841,3181.6,3180.0,0.14146536]
[1768868885703,0.16073841,3181.6,3180.1,0.14146536]
[1768868885704,0.00348841,3181.6,3180.1,0.14146536]
[1768868886504,0.00348841,3181.6,3180.1,0.29878536]
[1768868886707,0.00348841,3181.6,3180.2,0.14146536]
[1768868887807,0.00348841,3181.6,3180.2,0.29878536]
[1768868888114,0.00348841,3181.6,3180.3,0.14146536]
[1768868889603,0.00348841,3181.6,3180.3,0.29877536]
[1768868889911,10.307,3182.8,3180.7,0.14146536]
[1768868890115,0.81950525,3182.7,3180.7,0.14146536]
[1768868890410,0.81950525,3182.6,3180.7,0.14146536]
[1768868890609,0.81950525,3182.5,3180.7,0.14146536]
[1768868890807,0.81950525,3182.4,3180.7,0.14146536]
[1768868891012,0.00243576,3182.5,3180.7,0.14146536]
[1768868891214,0.81894114,3182.4,3180.7,0.14146536]
[1768868891414,0.00243576,3182.5,3180.7,0.14146536]
[1768868891603,0.81869249,3182.4,3180.7,0.14146536]
[1768868891804,0.00243576,3182.5,3180.7,0.14146536]
[1768868892311,0.00243576,3182.5,3181.0,0.14146536]
[1768868892510,0.00243576,3182.5,3181.3,0.14146536]
[1768868893210,0.15717,3183.3,3181.4,0.14146536]
[1768868893512,0.15714,3183.9,3181.6,0.14146536]
[1768868893699,0.81825394,3183.8,3181.7,0.14146536]
[1768868893906,0.81825394,3183.7,3181.7,0.14146536]
[1768868894102,0.15714,3183.9,3181.7,0.29871536]
[1768868894297,0.79201428,3183.8,3181.8,0.14146536]
[1768868894510,0.16097393,3183.9,3181.8,0.14146536]
[1768868894704,0.79127982,3183.8,3181.8,0.14146536]
[1768868895014,0.16097393,3183.9,3181.8,0.14146536]
[1768868896205,0.16097393,3183.9,3182.0,0.14146536]
[1768868896406,0.00383393,3183.9,3182.0,0.29869536]
[1768868896603,0.00383393,3183.9,3182.5,0.14146536]
[1768868896910,0.00383393,3183.9,3182.5,0.14423952]
[1768868897414,1.68962751,3185.6,3182.7,0.14146536]
[1768868897718,0.05467576,3185.3,3182.8,0.14146536]
[1768868897915,0.78989205,3185.2,3182.8,0.14146536]
[1768868898213,0.79362808,3185.2,3182.8,0.14146536]
[1768868898514,0.94621699,3185.1,3182.8,0.14146536]
[1768868898702,0.15708,3185.1,3182.8,0.14146536]
[1768868899111,0.00373603,3185.2,3182.8,0.14146536]
[1768868899313,0.1571,3184.7,3182.5,0.00277416]
[1768868900110,0.00373603,3185.2,3182.5,0.00277416]
[1768868900317,2.48201501,3185.2,3182.5,0.00277416]
[1768868900615,0.78865147,3185.1,3182.5,0.00277416]
[1768868900814,0.78865147,3185.0,3182.5,0.00277416]
[1768868901012,0.78865147,3184.9,3182.5,0.00277416]
[1768868901211,0.78865147,3184.8,3182.5,0.00277416]
[1768868901412,0.78865147,3184.7,3182.5,0.00277416]
[1768868901715,0.15711,3184.5,3182.5,0.00277416]
[1768868902517,0.15711,3184.5,3182.5,0.14423952]
[1768868903608,0.15713,3184.1,3182.5,0.00277416]
[1768868903919,1.68962751,3184.7,3182.5,0.00277416]
[1768868904114,0.15714,3183.9,3182.5,0.00277416]
[1768868904313,0.15714,3183.8,3182.5,0.00277416]
[1768868914227,0.79096444,3183.7,3182.5,0.00277416]
[1768868914428,0.15714,3183.8,3182.5,0.00277416]
[1768868914628,0.79096362,3183.7,3182.5,0.00277416]
[1768868914926,0.15714,3183.8,3182.5,0.00277416]
[1768868915126,0.78640974,3183.7,3182.5,0.00277416]
[1768868915326,0.15714,3183.8,3182.5,0.00277416]
[1768868915529,0.94406223,3183.7,3182.5,0.00277416]
[1768868915730,0.15715,3183.7,3182.5,0.00277416]
[1768868916333,0.78743546,3183.6,3182.5,0.00277416]
[1768868916531,0.15715,3183.7,3182.5,0.00277416]
[1768868916732,0.78743537,3183.6,3182.5,0.00277416]
[1768868916932,0.15715,3183.7,3182.5,0.00277416]
[1768868917131,0.78743579,3183.6,3182.5,0.00277416]
[1768868917325,0.15715,3183.7,3182.5,0.00277416]
[1768868917524,0.7878726,3183.6,3182.5,0.00277416]
[1768868917729,0.15715,3183.7,3182.5,0.00277416]
[1768868917930,0.78803124,3183.6,3182.5,0.00277416]
[1768868918231,0.78856015,3183.5,3182.5,0.00277416]
[1768868918433,0.15715,3183.7,3182.5,0.00277416]
[1768868918621,0.7885578,3183.6,3182.5,0.00277416]
[1768868918923,0.7885578,3183.5,3182.5,0.00277416]
[1768868919121,0.15715,3183.7,3182.5,0.00277416]
[1768868919322,0.78914817,3183.6,3182.5,0.00277416]
[1768868919534,0.78914817,3183.5,3182.5,0.00277416]
[1768868919735,0.15715,3183.7,3182.5,0.00277416]
[1768868919932,0.7891452,3183.6,3182.5,0.00277416]
[1768868920233,0.7891452,3183.5,3182.5,0.00277416]
[1768868922434,0.7891452,3183.4,3182.5,0.00277416]
[1768868922629,0.7891452,3183.3,3182.5,0.00277416]
[1768868922836,0.7891452,3183.2,3182.5,0.00277416]
[1768868923033,1.26930596,3183.6,3182.5,0.00277416]
[1768868923235,0.79063245,3183.5,3182.5,0.00277416]
[1768868923435,0.79063245,3183.4,3182.5,0.00277416]
[1768868923633,0.79063245,3183.3,3182.5,0.00277416]
[1768868923834,0.79063245,3183.2,3182.5,0.00277416]
[1768868924035,1.26930596,3183.6,3182.5,0.00277416]
[1768868924235,0.79083596,3183.5,3182.5,0.00277416]
[1768868924434,0.79083596,3183.4,3182.5,0.00277416]
[1768868924639,0.79083596,3183.3,3182.5,0.00277416]
[1768868924839,0.79083596,3183.2,3182.5,0.00277416]
[1768868925135,1.26930596,3183.6,3182.5,0.00277416]
[1768868925340,0.79084491,3183.5,3182.5,0.00277416]
[1768868925638,0.79084491,3183.4,3182.5,0.00277416]
[1768868925937,0.79084491,3183.3,3182.5,0.00277416]
[1768868926139,0.79084491,3183.2,3182.5,0.00277416]
[1768868926338,1.26930596,3183.6,3182.5,0.00277416]
[1768868926533,0.79083256,3183.5,3182.5,0.00277416]
[1768868926734,0.79083256,3183.4,3182.5,0.00277416]
[1768868926934,0.79083256,3183.3,3182.5,0.00277416]
[1768868927135,0.79083256,3183.2,3182.5,0.00277416]
[1768868927435,1.26930596,3183.6,3182.5,0.00277416]
[1768868927636,0.79122464,3183.5,3182.5,0.00277416]
[1768868927936,0.79122464,3183.4,3182.5,0.00277416]
[1768868928134,0.79122464,3183.3,3182.5,0.00277416]
[1768868928336,0.79122464,3183.2,3182.5,0.00277416]
[1768868928533,0.79122464,3183.1,3182.5,0.00277416]
[1768868928738,1.11215596,3183.5,3182.5,0.00277416]
[1768868928939,1.90404283,3183.5,3182.5,0.00277416]
[1768868930040,0.79188687,3183.4,3182.5,0.00277416]
[1768868930243,0.79188687,3183.3,3182.5,0.00277416]
[1768868930438,0.79188687,3183.2,3182.5,0.00277416]
[1768868930637,0.79188687,3183.1,3182.5,0.00277416]
[1768868930838,1.11215596,3183.5,3182.5,0.00277416]
[1768868931239,1.90469986,3183.5,3182.5,0.00277416]
[1768868931537,0.7925439,3183.4,3182.5,0.00277416]
[1768868931737,0.7925439,3183.3,3182.5,0.00277416]
[1768868931943,0.7925439,3183.2,3182.5,0.00277416]
[1768868932144,0.7925439,3183.1,3182.5,0.00277416]
[1768868932344,1.84677751,3183.6,3182.5,0.00277416]
[1768868932345,1.11215596,3183.4,3182.5,0.00277416]
[1768868933244,0.31328373,3183.3,3182.5,0.00277416]
[1768868933545,0.79305201,3183.2,3182.5,0.00277416]
[1768868933754,0.79305201,3183.1,3182.5,0.00277416]
[1768868934055,0.79305201,3183.0,3182.3,1.3175087]
[1768868934353,1.11215596,3183.4,3182.3,1.3175087]
[1768868934554,0.31328971,3183.3,3182.3,1.3175087]
[1768868934754,0.79370486,3183.2,3182.3,1.3175087]
[1768868934951,0.79370486,3183.1,3182.3,1.32031047]
[1768868935151,0.79370486,3183.0,3182.3,1.32031047]
[1768868935357,1.11215596,3183.4,3182.3,1.32031047]
[1768868935651,0.31329355,3183.3,3182.3,1.32031047]
[1768868935854,1.3175087,3183.0,3182.3,0.00280177]
[1768868936149,1.10695262,3182.9,3181.6,1.4592294]
[1768868936354,2.42966466,3183.0,3181.6,1.4592294]
[1768868936355,0.79370071,3182.8,3181.6,1.4592294]
[1768868936551,0.79370071,3182.7,3181.6,1.4592294]
[1768868936854,0.79370071,3182.6,3181.4,1.3175087]
[1768868937058,0.79370071,3182.5,3181.4,1.3209291]
[1768868937256,0.79370071,3182.4,3181.4,1.3209291]
[1768868937556,0.00367873,3182.6,3181.4,1.3209291]
[1768868937747,0.80079535,3182.5,3181.4,1.3209291]
[1768868937950,0.80079535,3182.4,3181.4,0.0034204]
[1768868938156,0.80079535,3182.3,3181.4,0.0034204]
[1768868938355,0.80079535,3182.2,3181.4,0.0034204]
[1768868938556,2.43334339,3182.6,3181.4,0.0034204]
[1768868938853,0.80020032,3182.5,3181.4,0.0034204]
[1768868939050,1.63016007,3182.4,3181.4,0.0034204]
[1768868939256,0.80024105,3182.3,3181.4,0.0034204]
[1768868939459,0.80024105,3182.2,3181.4,0.0034204]
[1768868939659,0.80024105,3182.1,3181.4,0.0034204]
[1768868939853,0.16087873,3182.6,3181.6,1.3175087]
[1768868940060,0.79973215,3182.5,3181.6,1.3175087]
[1768868940258,0.79973215,3182.4,3181.6,1.3175087]
[1768868940462,0.79973215,3182.3,3181.4,1.3209291]
[1768868940663,0.79973215,3182.2,3181.4,1.3209291]
[1768868940860,0.16087873,3182.6,3181.4,1.3209291]
[1768868941157,0.79970289,3182.5,3181.6,1.3175087]
[1768868941352,0.79970289,3182.4,3181.6,1.3175087]
[1768868941554,0.16087873,3182.6,3181.6,1.3175087]
[1768868941860,0.79941453,3182.5,3181.6,1.3175087]
[1768868942061,0.79941453,3182.4,3181.6,1.3175087]
[1768868942251,0.16087873,3182.6,3181.6,1.3175087]
[1768868942453,0.79921729,3182.5,3182.0,1.3175087]
[1768868942756,0.00367873,3182.6,3182.2,1.4592294]
[1768868943261,0.00367873,3182.6,3182.2,1.3175087]
[1768868943560,0.00090454,3182.6,3182.2,1.3175087]
[1768868945357,0.00090454,3182.6,3181.8,0.1417207]
[1768868945560,0.00090454,3182.6,3182.0,1.3175087]
[1768868945761,0.00090454,3182.6,3181.4,1.3209291]
[1768868945962,0.00090454,3182.6,3181.4,0.0034204]
[1768868946255,0.00090454,3182.6,3181.6,1.3175087]
[1768868948162,0.00090454,3182.6,3181.8,1.3175087]
[1768868948553,0.00090454,3182.6,3181.5,0.1417207]
[1768868948755,0.00090454,3182.6,3181.6,1.3175087]
[1768868950861,0.00090454,3182.6,3182.0,1.4592294]
[1768868952458,1.11215596,3183.2,3182.2,1.4592294]
[1768868952658,1.91443332,3183.2,3182.2,1.4592294]
[1768868952853,0.80227736,3183.1,3182.2,0.1417207]
[1768868953058,0.80227736,3183.0,3182.2,0.1417207]
[1768868953259,0.80227736,3182.9,3182.2,0.1417207]
[1768868953460,0.00353903,3182.9,3182.2,0.1417207]
[1768868953966,1.11215596,3183.5,3182.2,0.1417207]
[1768868954165,0.80244332,3183.4,3182.2,0.1417207]
[1768868954360,0.80244332,3183.3,3182.2,0.1417207]
[1768868954569,1.11215596,3183.8,3182.2,0.1417207]
[1768868954959,1.11215596,3183.9,3182.2,0.1417207]
[1768868955165,0.31234176,3183.8,3182.2,0.1417207]
[1768868955469,1.11491192,3183.9,3182.2,0.1417207]
[1768868956169,0.00275596,3183.9,3182.2,0.1417207]
[1768868959761,0.28137105,3183.8,3182.2,0.1417207]
[1768868959961,0.12423105,3183.7,3181.7,0.1417207]
[1768868960563,1.23638701,3183.7,3181.7,0.1417207]
[1768868960760,1.11215596,3183.7,3181.7,0.1417207]
[1768868960970,1.26929596,3183.8,3181.7,0.1417207]
[1768868961166,0.31219443,3183.7,3181.7,0.1417207]
[1768868961375,1.26929596,3183.8,3181.7,0.1417207]
[1768868961672,0.31219785,3183.7,3181.7,0.1417207]
[1768868961878,1.26929596,3183.8,3181.7,0.1417207]
[1768868962171,0.31219796,3183.7,3181.7,0.1417207]
[1768868962371,1.26929596,3183.8,3181.7,0.1417207]
[1768868963472,0.15714,3183.8,3182.0,0.139476]
[1768868965864,0.15714,3183.8,3182.2,0.139476]
[1768868966466,0.80127716,3183.7,3182.2,0.139476]
[1768868966668,0.15714,3183.8,3182.2,0.139476]
[1768868966869,0.80127895,3183.7,3182.2,0.139476]
[1768868967069,0.00275596,3183.9,3182.2,0.139476]
[1768868967277,0.80131049,3183.8,3182.5,0.139476]
[1768868967477,0.00275596,3183.9,3182.5,0.139476]
[1768868967675,0.80121805,3183.8,3182.5,0.139476]
[1768868967875,0.00275596,3183.9,3182.5,0.139476]
[1768868968075,0.80121802,3183.8,3182.5,0.139476]
[1768868968275,0.00275596,3183.9,3182.5,0.139476]
[1768868968475,0.80120462,3183.8,3182.5,0.139476]
[1768868968681,0.00275596,3183.9,3182.5,0.139476]
[1768868968881,0.80120605,3183.8,3182.5,0.139476]
[1768868969068,0.00275596,3183.9,3182.5,0.139476]
[1768868969271,0.80120626,3183.8,3182.5,0.139476]
[1768868969471,0.00275596,3183.9,3182.5,0.139476]
[1768868969678,0.80129171,3183.8,3182.5,0.139476]
[1768868969882,0.00275596,3183.9,3182.5,0.139476]
[1768868970068,0.80129171,3183.8,3182.5,0.139476]
[1768868970275,0.00275596,3183.9,3182.5,0.139476]
[1768868970473,0.80125427,3183.8,3182.5,0.139476]
[1768868970674,0.00275596,3183.9,3182.5,0.139476]
[1768868970973,0.80125532,3183.8,3182.5,0.139476]
[1768868971175,0.00275596,3183.9,3182.5,0.139476]
[1768868971376,0.80126107,3183.8,3182.5,0.139476]
[1768868971682,0.00275596,3183.9,3182.5,0.139476]
[1768868972980,0.00275596,3183.9,3183.2,1.31689233]
[1768868978179,0.00275596,3183.9,3183.4,1.31689233]
[1768868978378,0.00275596,3183.9,3183.4,1.45636833]
[1768868978575,1.11215596,3184.5,3183.6,1.31689233]
[1768868978777,1.11215596,3184.5,3183.4,1.45636833]
[1768868979286,0.31230432,3184.4,3183.4,1.45636833]
[1768868979585,0.80125087,3184.3,3183.4,1.45636833]
[1768868979785,0.80125087,3184.2,3183.4,1.45636833]
[1768868980282,0.80125087,3184.2,3183.4,1.31689233]
[1768868980488,0.80125087,3184.2,3183.2,1.31689233]
[1768868980679,0.80125087,3184.2,3183.0,0.139476]
[1768868980879,0.80125087,3184.2,3183.1,1.31689233]
[1768868981287,0.80125087,3184.2,3183.3,1.31689233]
[1768868984688,0.80125087,3184.2,3183.7,1.31689233]
[1768868984986,0.80125087,3184.2,3183.7,1.31963538]
[1768868985180,0.80125087,3184.2,3183.7,0.00274305]
[1768868992491,0.80125087,3184.1,3182.9,0.13265963]
[1768868992695,0.80125087,3184.0,3182.9,0.13265963]
[1768868992895,1.11554143,3184.3,3182.9,0.13265963]
[1768868992896,0.80292925,3183.9,3182.9,0.13265963]
[1768868993196,1.11554143,3184.3,3182.9,0.13265963]
[1768868993395,1.11554143,3184.3,3183.0,1.31690633]
[1768868993586,1.11554143,3184.3,3183.1,0.13545893]
[1768868994192,0.31299099,3184.2,3183.1,0.13545893]
[1768868994494,0.80308798,3184.1,3183.1,0.13545893]
[1768868994694,0.80308798,3184.0,3183.1,0.13545893]
[1768868994993,0.80308798,3183.9,3183.1,0.13545893]
[1768868995189,1.11554143,3184.3,3183.1,0.13545893]
[1768868995385,0.31304445,3184.2,3183.1,0.13545893]
[1768868995587,0.80335843,3184.1,3183.1,0.13545893]
[1768868995892,0.80335843,3184.0,3183.1,0.13545893]
[1768868996092,0.80335843,3183.9,3183.1,0.13545893]
[1768868996393,1.11554143,3184.3,3183.1,0.13545893]
[1768868996587,0.31309375,3184.2,3183.1,0.13545893]
[1768868996893,0.80349652,3184.1,3183.1,0.13545893]
[1768868997088,0.80349652,3184.0,3183.1,0.13545893]
[1768868997297,0.80349652,3183.9,3183.1,0.13545893]
[1768868997589,1.11554143,3184.3,3183.1,0.13545893]
[1768868997789,0.31315101,3184.2,3183.1,0.13545893]
[1768868997990,0.80361029,3184.1,3183.1,1.45236526]
[1768868998197,0.80361029,3184.0,3183.1,1.45236526]
[1768868998491,0.80361029,3183.9,3183.1,1.45236526]
[1768868998698,1.11554143,3184.3,3183.1,1.45236526]
[1768868998883,0.31319369,3184.2,3183.1,1.45236526]
[1768868999089,0.80371367,3184.1,3183.1,1.45236526]
[1768868999290,0.80371367,3184.0,3183.1,1.45236526]
[1768868999489,0.80371367,3183.9,3183.1,1.45236526]
[1768868999700,0.1346132,3184.2,3183.1,1.31690633]
[1768869000996,0.00338547,3184.3,3183.1,1.31690633]
[1768869002294,0.00338547,3184.3,3182.9,0.00392871]
[1768869003199,0.13799867,3184.3,3182.9,0.00392871]
[1768869004304,0.13799867,3184.3,3183.2,1.31690633]
[1768869008310,0.13799867,3184.3,3182.9,0.00392871]
[1768869008894,0.13799867,3184.3,3183.0,1.31690633]
[1768869009104,1.74430138,3184.9,3183.5,1.31690633]
[1768869009105,0.1346132,3184.8,3183.5,1.31690633]
[1768869009306,0.44776587,3184.7,3183.5,1.31690633]
[1768869009602,0.31315267,3184.6,3183.5,1.31690633]
[1768869009816,0.1346132,3184.6,3183.5,1.31690633]
[1768869010006,0.31315249,3184.5,3183.5,1.31690633]
[1768869010204,0.13751556,3184.6,3183.5,1.31690633]
[1768869010608,0.00290236,3184.6,3183.5,1.31690633]
[1768869010811,0.1346132,3185.5,3184.3,1.31690633]
[1768869011003,0.31325883,3185.4,3184.3,1.31690633]
[1768869011203,1.24676916,3185.5,3184.3,1.31690633]
[1768869011402,0.1346132,3185.5,3184.3,1.31690633]
[1768869011805,0.79912675,3185.4,3184.3,1.31690633]
[1768869012004,0.13770909,3185.5,3184.3,1.31690633]
[1768869012005,0.79912675,3185.3,3184.3,1.31690633]
[1768869012308,0.13770909,3185.5,3184.3,1.31690633]
[1768869012610,0.79852379,3185.4,3184.3,1.31690633]
[1768869012811,0.79852379,3185.3,3184.3,1.31690633]
[1768869013016,0.13770909,3185.5,3184.3,1.31690633]
[1768869013202,0.79836871,3185.4,3184.3,1.31690633]
[1768869013400,0.13770909,3185.5,3184.3,1.31690633]
[1768869013598,0.79796376,3185.4,3184.3,1.31690633]
[1768869013805,0.13770909,3185.5,3184.3,1.31690633]
[1768869014011,0.79751827,3185.4,3184.3,1.31690633]
[1768869014206,0.13770909,3185.5,3184.3,1.31690633]
[1768869014908,0.79689855,3185.4,3183.9,1.31690633]
[1768869015213,0.13770909,3185.5,3183.9,1.31690633]
[1768869015413,0.1346132,3185.3,3183.9,1.31690633]
[1768869017909,0.1346132,3185.3,3183.3,2.38272757]
[1768869018208,0.1346132,3185.1,3183.2,1.31690633]
[1768869018406,0.1346132,3185.1,3183.2,42.11690633]
[1768869018613,0.1346132,3185.1,3183.6,1.31690633]
[1768869018915,0.00309589,3185.5,3184.0,1.31690633]
[1768869019213,0.93091027,3185.4,3184.0,1.31690633]
[1768869019415,0.1346132,3185.4,3184.0,1.31690633]
[1768869023504,0.00309589,3185.5,3184.0,1.31690633]
[1768869024615,0.00309589,3185.5,3184.4,1.31690633]
[1768869025619,0.00309589,3185.5,3184.0,1.44851948]
[1768869027325,0.00309589,3185.5,3184.1,0.28874315]
[1768869027512,0.00309589,3185.5,3184.2,0.13161315]
[1768869027913,0.15703,3186.1,3184.7,1.31690633]
[1768869028111,0.79657179,3186.0,3184.7,1.31690633]
[1768869028311,0.79657179,3185.9,3184.7,1.31690633]
[1768869028617,0.13617689,3186.2,3184.7,1.31690633]
[1768869028817,0.79660995,3186.1,3184.7,1.31690633]
[1768869029012,0.79660995,3186.0,3184.7,1.31690633]
[1768869029221,0.14022758,3186.2,3184.7,1.31690633]
[1768869029419,0.79655929,3186.1,3184.7,1.31690633]
[1768869029716,0.79655929,3186.0,3184.7,1.31690633]
[1768869029919,0.14022758,3186.2,3184.7,1.31690633]
[1768869030116,0.79657675,3186.1,3184.7,1.31690633]
[1768869030309,0.14022758,3186.2,3184.3,0.15712]
[1768869030510,0.13617689,3186.0,3184.3,0.15712]
[1768869031619,0.13617689,3186.0,3184.5,1.31690633]
[1768869031810,0.00405069,3186.2,3184.9,1.31690633]
[1768869032011,0.00405069,3186.2,3184.7,0.13161315]
[1768869032213,0.00405069,3186.2,3185.2,1.31690633]
[1768869032521,0.00405069,3186.2,3185.2,1.32091769]
[1768869032719,0.13617689,3186.8,3185.2,1.45253084]
[1768869032922,1.24833285,3187.2,3185.2,1.45253084]
[1768869033117,0.79651686,3187.1,3185.3,0.13161315]
[1768869033321,0.79651686,3187.0,3185.6,1.31690633]
[1768869033513,0.13617689,3187.2,3185.6,1.31690633]
[1768869033713,0.79638779,3187.1,3185.6,1.31690633]
[1768869033915,0.13918521,3187.2,3185.6,1.31690633]
[1768869034116,0.79638644,3187.1,3185.6,1.31690633]
[1768869034314,0.13918521,3187.2,3185.6,1.31690633]
[1768869034517,0.13918521,3187.2,3185.2,0.16108136]
[1768869034518,0.13617689,3186.9,3185.2,0.16108136]
[1768869034827,0.13617689,3186.9,3185.2,0.00401136]
[1768869035922,0.00300832,3187.2,3185.3,0.13161315]
[1768869036114,0.79515457,3187.1,3185.6,1.31690633]
[1768869036314,0.00300832,3187.2,3185.7,0.13161315]
[1768869036914,0.13918521,3187.2,3185.4,0.15706]
[1768869038327,0.13918521,3187.2,3185.5,0.13161315]
[1768869038827,0.00300832,3187.2,3185.9,1.31690633]
[1768869039830,0.00300832,3187.2,3185.5,1.44851948]
[1768869040327,0.13918521,3187.2,3185.5,0.13161315]
[1768869040826,0.13918521,3187.2,3185.4,1.31690633]
[1768869041029,0.79495383,3187.1,3185.2,0.00401136]
[1768869041216,0.13617689,3186.9,3185.2,0.00401136]
[1768869042533,0.13617689,3186.9,3185.2,1.32091769]
[1768869042741,0.13617689,3186.9,3185.2,1.45276103]
[1768869043625,0.13617689,3186.9,3185.2,0.00401136]
[1768869044131,0.14504047,3186.7,3185.2,0.00401136]
[1768869044333,0.14504047,3186.5,3185.2,0.00401136]
[1768869045537,0.14504047,3186.3,3185.2,0.00401136]
[1768869047235,1.11215596,3186.7,3185.2,0.00401136]
[1768869047236,0.14504047,3186.1,3185.2,0.00401136]
[1768869047431,0.79508948,3186.0,3185.2,0.00401136]
[1768869047732,0.14504047,3185.9,3184.0,1.31690633]
[1768869047939,0.14504047,3185.9,3184.1,40.8]
[1768869048139,0.14504047,3185.9,3184.4,1.31690633]
[1768869048637,0.14504047,3185.9,3184.4,1.3191869]
[1768869048936,0.14504047,3185.9,3185.1,1.31525585]
[1768869049132,0.15702,3186.3,3184.4,0.00228057]
[1768869049133,0.14504047,3186.3,3185.5,1.31525585]
[1768869049337,0.79553705,3186.2,3185.5,1.31525585]
[1768869049537,0.14504047,3186.3,3185.5,1.31525585]
[1768869049850,0.7957148,3186.2,3185.3,1.31525585]
[1768869050040,0.14504047,3186.3,3184.4,0.13412391]
[1768869050242,0.7957203,3186.2,3185.1,1.31525585]
[1768869050430,0.7957203,3186.1,3185.1,1.31525585]
[1768869050629,0.14504047,3186.3,3184.4,0.13412391]
[1768869050938,0.94094784,3186.2,3185.1,1.31525585]
[1768869051138,0.79590737,3186.1,3185.1,1.31525585]
[1768869051336,0.14504047,3186.2,3185.4,1.31525585]
[1768869051526,0.7960654,3186.1,3185.4,1.31525585]
[1768869051730,0.14504047,3186.2,3185.2,1.31525585]
[1768869051931,0.79606632,3186.1,3185.2,1.31525585]
[1768869052134,0.14504047,3186.2,3185.2,1.31525585]
[1768869052344,0.79605386,3186.1,3185.2,1.31525585]
[1768869052545,0.14504047,3186.2,3185.2,1.31525585]
[1768869052844,0.79627702,3186.1,3185.2,1.31525585]
[1768869053045,0.14504047,3186.2,3185.2,1.31525585]
[1768869053233,0.79627486,3186.1,3185.2,1.31525585]
[1768869053541,0.14504047,3186.2,3185.4,1.31525585]
[1768869053731,0.79652112,3186.1,3185.4,1.31525585]
[1768869053935,0.14504047,3186.2,3185.4,1.31525585]
[1768869055543,0.14504047,3186.2,3185.3,1.31525585]
[1768869056139,0.79680809,3186.1,3185.1,1.31525585]
[1768869056339,0.14504047,3186.2,3185.1,1.31525585]
[1768869056538,0.79693795,3186.1,3185.1,1.31525585]
[1768869056732,0.14504047,3186.2,3185.1,1.31525585]
[1768869056936,0.79693983,3186.1,3185.1,1.31525585]
[1768869057146,0.14504047,3186.2,3185.3,1.31525585]
[1768869057444,0.79693994,3186.1,3185.3,1.31525585]
[1768869057745,0.14504047,3186.2,3185.3,1.31525585]
[1768869057940,0.79708875,3186.1,3185.3,1.31525585]
[1768869058243,0.7974378,3186.0,3184.4,0.13412391]
[1768869058446,0.14504047,3186.2,3185.2,1.31525585]
[1768869058739,0.79757059,3186.1,3185.2,1.31525585]
[1768869059043,0.79757059,3186.0,3185.2,1.31525585]
[1768869059245,0.14504047,3186.2,3185.2,1.31525585]
[1768869059449,0.79765773,3186.1,3185.2,1.31525585]
[1768869059640,0.79765773,3186.0,3185.2,1.31525585]
[1768869059837,0.14504047,3186.2,3185.2,1.31525585]
[1768869060140,0.79774159,3186.1,3185.2,1.31525585]
[1768869060341,0.79774159,3186.0,3185.2,1.31525585]
[1768869060542,0.14504047,3186.2,3185.2,1.31525585]
[1768869060736,0.79783035,3186.1,3185.7,1.31525585]
[1768869060940,1.25522586,3186.7,3185.7,1.31525585]
[1768869061142,0.79790167,3186.6,3185.9,1.31525585]
[1768869061440,0.79790167,3186.5,3185.9,1.31525585]
[1768869061646,0.1430699,3186.7,3185.9,1.31525585]
[1768869061839,0.1430699,3187.1,3186.5,1.31525585]
[1768869062145,0.00300832,3187.2,3186.7,1.31525585]
[1768869062345,0.00300832,3187.2,3186.7,0.00342519]
[1768869063046,0.1430699,3187.5,3186.8,1.31525585]
[1768869063843,0.1430699,3187.5,3186.7,0.00342519]
[1768869064041,0.14652102,3187.5,3186.7,0.00342519]
[1768869066051,0.14652102,3187.5,3185.8,40.8]
[1768869066052,0.1430699,3187.3,3185.4,2.24726864]
[1768869066343,0.1430699,3187.3,3186.0,1.31525585]
[1768869066651,1.45832575,3187.0,3185.8,1.31525585]
[1768869066852,0.1430699,3187.0,3185.8,1.31525585]
[1768869067051,0.1430699,3187.0,3185.8,1.31816437]
[1768869067550,0.1430699,3187.4,3186.2,1.31525585]
[1768869068848,0.1430699,3187.4,3186.4,1.31525585]
[1768869069654,0.1430699,3187.4,3185.8,0.00290852]
[1768869069855,0.1430699,3187.4,3186.4,1.31525585]
[1768869071053,0.1430699,3187.4,3186.1,1.31525585]
[1768869071251,0.1430699,3187.2,3185.9,1.31525585]
[1768869072545,0.1430699,3187.2,3186.1,1.31525585]
[1768869073862,0.79197579,3187.1,3186.1,1.31525585]
[1768869074159,0.79197579,3187.0,3186.1,1.31525585]
[1768869074352,0.79197579,3186.9,3186.1,1.31525585]
[1768869074553,0.1430699,3187.2,3186.1,1.31525585]
[1768869074757,0.79193769,3187.1,3186.1,1.31525585]
[1768869075057,0.79193769,3187.1,3185.8,0.00290852]
[1768869075058,0.1430699,3186.9,3185.8,0.00290852]